bitfinex/quotes_SOLUSD_20220228
["timestamp","ask_amount","ask_price","bid_price","bid_amount"]
[1646015543077,31.02920531,86.685,86.587,6.0]
[1646015543276,2.74678921,86.684,86.59,17.3264]
[1646015543477,2.74678921,86.684,86.598,112.6]
[1646015543678,2.74678921,86.696,86.599,124.63076526]
[1646015543877,2.74678921,86.696,86.6,2.37814339]
[1646015544077,61.52036501,86.749,86.611,115.8]
[1646015544278,59.77582885,86.749,86.641,115.8]
[1646015544477,17.0235,86.751,86.642,2.68842072]
[1646015544678,45.3265294,86.747,86.645,2.72739032]
[1646015544878,45.3265294,86.747,86.648,3.11180458]
[1646015545077,45.3265294,86.747,86.649,6.0]
[1646015545477,45.3265294,86.747,86.66,17.3123]
[1646015545677,45.3265294,86.747,86.661,8.9425595]
[1646015546077,70.80607173,86.747,86.661,8.9425595]
[1646015546277,70.80607173,86.747,86.661,6.0]
[1646015546478,1.69927389,86.746,86.661,6.0]
[1646015546679,2.4649634,86.677,86.66,17.3123]
[1646015546877,2.4649634,86.677,86.645,2.38743895]
[1646015547078,2.4649634,86.677,86.646,6.0]
[1646015547481,2.4649634,86.677,86.64,17.3156]
[1646015547878,2.4649634,86.677,86.617,17.65414621]
[1646015547879,2.4649634,86.677,86.62,3.0854289]
[1646015548478,2.4649634,86.677,86.632,6.0]
[1646015548679,2.4649634,86.677,86.62,3.0854289]
[1646015549081,2.4649634,86.677,86.63,17.3187]
[1646015550681,2.4649634,86.677,86.62,3.0854289]
[1646015551181,2.4649634,86.677,86.621,6.0]
[1646015551381,2.4649634,86.677,86.614,6.0]
[1646015551584,2.4649634,86.677,86.612,23.6008]
[1646015552985,2.4649634,86.677,86.59,188.9]
[1646015553185,2.4649634,86.677,86.591,6.0]
[1646015553685,2.4649634,86.677,86.592,32.2173061]
[1646015553885,2.4649634,86.677,86.593,6.0]
[1646015554386,2.4649634,86.677,86.594,32.2173061]
[1646015554986,2.4649634,86.677,86.595,6.0]
[1646015555386,2.4649634,86.677,86.592,6.0]
[1646015555790,2.4649634,86.677,86.593,32.2173061]
[1646015555986,2.4649634,86.677,86.594,6.0]
[1646015556488,2.4649634,86.677,86.595,32.2173061]
[1646015556692,1.85206518,86.682,86.596,6.0]
[1646015557294,1.85206518,86.682,86.597,32.2173061]
[1646015557493,52.12721044,86.684,86.601,2.93498056]
[1646015557695,52.12721044,86.684,86.602,6.0]
[1646015558295,52.12721044,86.684,86.604,2.96078621]
[1646015558493,52.12721044,86.684,86.62,17.3208]
[1646015558694,52.12721044,86.684,86.621,8.77169789]
[1646015559093,52.12721044,86.684,86.621,2.77169789]
[1646015559697,52.12721044,86.684,86.62,17.3208]
[1646015560301,1.46905729,86.707,86.621,32.2095918]
[1646015560499,1.44415843,86.718,86.622,2.6520373]
[1646015561100,1.44415843,86.718,86.621,32.2095918]
[1646015561101,1.44415843,86.718,86.624,2.51087222]
[1646015561502,52.46577266,86.707,86.624,2.51087222]
[1646015561901,52.46577266,86.707,86.625,32.20910034]
[1646015562101,78.2834898,86.707,86.625,32.20910034]
[1646015562301,1.60153408,86.706,86.625,32.20910034]
[1646015562502,115.8,86.705,86.625,32.20910034]
[1646015562719,115.8,86.699,86.621,144.80910034]
[1646015562923,1.86333038,86.698,86.621,144.80910034]
[1646015563120,1.86333038,86.698,86.622,32.20910034]
[1646015563322,69.55,86.924,86.63,247.3408]
[1646015563529,7.96524357,86.944,86.78,6.02184712]
[1646015563720,3.19170358,86.929,86.83,175.58]
[1646015563923,7.96524357,87.09,86.841,115.8]
[1646015564120,74.85259963,86.958,86.881,115.8]
[1646015564325,1.5075192,87.115,86.911,115.8]
[1646015564519,117.21117224,87.13,86.94,17.2528]
[1646015564720,69.55,87.121,86.95,14.05]
[1646015564920,115.8,87.098,86.94,14.05]
[1646015565121,1.38340523,87.097,86.94,14.05]
[1646015565319,44.96805906,87.096,86.94,14.05]
[1646015565524,1.54668708,87.095,86.94,14.05]
[1646015565719,44.96805906,87.096,86.94,14.05]
[1646015565720,1.47019609,87.088,86.94,14.05]
[1646015565919,58.31660121,87.08,86.88,57.5322]
[1646015566120,115.8,87.05,86.89,14.05]
[1646015566321,115.8,87.05,86.891,2.33111616]
[1646015566520,1.81611693,87.039,86.891,35.14391222]
[1646015566723,42.87338759,87.038,86.892,39.91291022]
[1646015566922,1.41515976,87.037,86.893,2.70839691]
[1646015567320,1.41515976,87.037,86.891,2.95763554]
[1646015567521,17.2676,87.03,86.89,14.05]
[1646015567726,1.56263783,87.029,86.891,8.8451724]
[1646015568925,1.56263783,87.029,86.89,14.05]
[1646015569125,1.56263783,87.029,86.891,9.01563331]
[1646015569826,59.72630685,87.019,86.87,31.3146]
[1646015570024,14.05,87.01,86.871,2.41406725]
[1646015570232,59.72630685,87.019,86.88,17.2629]
[1646015570428,59.72630685,87.019,86.89,14.05]
[1646015571427,59.72630685,87.019,86.891,6.0]
[1646015571629,59.72630685,87.019,86.91,17.2582]
[1646015571827,59.72630685,87.019,86.92,14.05]
[1646015573429,1.55040935,87.018,86.92,14.05]
[1646015573828,59.72630685,87.019,86.92,14.05]
[1646015574829,59.72630685,87.019,86.921,6.0]
[1646015575031,59.72630685,87.019,86.921,8.3838401]
[1646015575630,59.72630685,87.019,86.92,14.05]
[1646015575631,34.54384785,87.019,86.92,14.05]
[1646015575833,34.54384785,87.019,86.921,2.67852104]
[1646015576032,36.20496003,87.019,86.92,14.05]
[1646015576229,34.54384785,87.019,86.9,14.05]
[1646015576430,35.9970591,87.019,86.9,14.05]
[1646015576629,34.54384785,87.019,86.9,14.05]
[1646015577234,34.54384785,87.019,86.881,2.89830902]
[1646015577235,1.62716284,87.017,86.881,2.89830902]
[1646015577431,1.62716284,87.017,86.882,6.0]
[1646015578234,34.54384785,87.019,86.882,6.0]
[1646015578434,34.54384785,87.019,86.881,2.89830902]
[1646015578632,1.80770801,87.018,86.881,2.89830902]
[1646015578833,1.80770801,87.018,86.86,2.59710859]
[1646015579234,34.54384785,87.019,86.86,2.59710859]
[1646015579235,60.36215582,86.998,86.86,2.59710859]
[1646015579436,115.8,86.997,86.86,2.59710859]
[1646015579639,14.05,86.99,86.86,2.59710859]
[1646015579836,1.81271861,86.989,86.86,2.59710859]
[1646015580136,1.55520344,86.988,86.86,2.59710859]
[1646015580338,115.8,86.977,86.86,2.59710859]
[1646015580535,1.554353,86.968,86.831,2.84300556]
[1646015580744,115.8,86.969,86.832,6.0]
[1646015581039,1.73005324,86.968,86.832,6.0]
[1646015581236,14.05,86.97,86.832,6.0]
[1646015581437,58.85417722,86.978,86.84,17.2713]
[1646015581637,58.85417722,86.978,86.841,8.53303579]
[1646015581837,1.68752894,86.977,86.841,8.53303579]
[1646015582937,17.2755,86.97,86.841,2.53303579]
[1646015583138,31.3255,86.97,86.84,14.05]
[1646015583336,117.60848294,86.969,86.811,2.41072671]
[1646015583540,1.63911317,86.968,86.82,14.05]
[1646015583737,1.63911317,86.968,86.821,2.38986121]
[1646015583937,115.8,86.963,86.821,2.38986121]
[1646015584140,14.05,86.95,86.821,2.38986121]
[1646015584338,1.78782876,86.949,86.821,2.38986121]
[1646015584638,1.81171832,86.946,86.822,10.0]
[1646015584838,115.8,86.939,86.823,6.0]
[1646015585238,115.8,86.939,86.823,2.29006345]
[1646015585441,115.8,86.939,86.824,6.0]
[1646015585640,74.00292933,86.939,86.824,6.0]
[1646015585841,17.2809,86.94,86.824,6.0]
[1646015586042,17.2809,86.94,86.82,14.05]
[1646015586441,17.2809,86.94,86.821,2.97457111]
[1646015586641,34.3093,86.94,86.821,2.33542382]
[1646015586842,115.8,86.939,86.82,14.05]
[1646015587042,34.3093,86.94,86.821,2.36722814]
[1646015587449,34.3093,86.94,86.823,115.8]
[1646015587643,34.3093,86.94,86.825,115.8]
[1646015587841,34.3093,86.94,86.822,6.0]
[1646015587842,34.3093,86.94,86.827,115.8]
[1646015588042,34.3093,86.94,86.826,6.0]
[1646015588445,34.3093,86.94,86.821,2.90340745]
[1646015588446,34.3093,86.94,86.822,6.0]
[1646015588648,58.11803448,86.948,86.827,2.74678921]
[1646015588846,58.11803448,86.948,86.84,14.05]
[1646015589044,58.11803448,86.948,86.842,115.8]
[1646015589244,58.11803448,86.948,86.845,3.10141396]
[1646015589448,58.11803448,86.948,86.848,2.7942744]
[1646015589645,58.11803448,86.948,86.851,2.45256654]
[1646015589845,58.11803448,86.948,86.852,6.0]
[1646015590846,58.11803448,86.948,86.845,2.75314779]
[1646015591045,58.11803448,86.948,86.848,2.82181512]
[1646015591247,58.11803448,86.948,86.843,6.0]
[1646015591248,58.11803448,86.948,86.851,2.42381279]
[1646015591445,58.11803448,86.948,86.852,6.0]
[1646015591946,58.11803448,86.948,86.854,2.34978901]
[1646015592145,58.11803448,86.948,86.856,115.8]
[1646015592347,58.11803448,86.948,86.861,115.8]
[1646015592551,58.11803448,86.948,86.863,115.8]
[1646015592745,58.11803448,86.948,86.865,115.8]
[1646015592946,58.11803448,86.948,86.867,115.8]
[1646015593146,58.11803448,86.948,86.869,115.8]
[1646015593349,58.11803448,86.948,86.871,115.8]
[1646015593549,58.11803448,86.948,86.873,115.8]
[1646015593752,58.11803448,86.948,86.875,115.8]
[1646015593950,58.11803448,86.948,86.877,125.8]
[1646015594151,58.11803448,86.948,86.879,115.8]
[1646015594351,58.11803448,86.948,86.881,115.8]
[1646015594551,58.11803448,86.948,86.883,115.8]
[1646015594751,58.11803448,86.948,86.885,115.8]
[1646015594950,58.11803448,86.948,86.887,115.8]
[1646015595151,58.11803448,86.948,86.889,115.8]
[1646015595350,58.11803448,86.948,86.89,121.8]
[1646015595552,58.11803448,86.948,86.891,2.50225106]
[1646015595751,58.11803448,86.948,86.892,6.0]
[1646015598662,58.11803448,86.948,86.891,2.50225106]
[1646015598860,58.11803448,86.948,86.888,10.0]
[1646015599062,72.6734,86.997,86.891,2.9419541]
[1646015599261,17.6355,87.008,86.894,2.99183005]
[1646015599460,24.0196,87.009,86.897,2.62051549]
[1646015599661,24.0196,87.009,86.91,14.05]
[1646015599860,24.0196,87.009,86.911,8.48873708]
[1646015600061,52.60632126,87.008,86.911,8.48873708]
[1646015601962,52.60632126,87.008,86.911,2.48873708]
[1646015602563,115.8,86.999,86.911,2.48873708]
[1646015602762,115.8,86.999,86.892,10.0]
[1646015602963,1.46068742,87.006,86.892,10.0]
[1646015603565,1.69064968,87.006,86.891,2.87414688]
[1646015604583,48.4150712,86.989,86.891,2.87414688]
[1646015605386,48.4150712,86.989,86.901,115.8]
[1646015605585,48.4150712,86.989,86.902,2.96686232]
[1646015605785,48.4150712,86.989,86.903,6.0]
[1646015606286,48.4150712,86.989,86.904,2.74678921]
[1646015606486,17.256,87.05,86.91,31.3126]
[1646015606689,115.8,87.049,86.921,115.8]
[1646015606886,115.8,87.049,86.92,57.5172]
[1646015606887,115.8,87.049,86.923,115.8]
[1646015607089,115.8,87.049,86.926,2.4978631]
[1646015607387,115.8,87.049,86.93,129.85]
[1646015607586,60.61774864,87.041,86.931,9.10300229]
[1646015608190,60.61774864,87.041,86.932,115.8]
[1646015608389,60.61774864,87.041,86.934,115.8]
[1646015608590,60.61774864,87.041,86.941,115.8]
[1646015608793,60.61774864,87.041,86.951,115.8]
[1646015608990,60.61774864,87.041,86.954,2.68894069]
[1646015609196,60.61774864,87.041,86.957,2.6569847]
[1646015609389,60.61774864,87.041,86.961,2.46517312]
[1646015609596,60.61774864,87.041,86.962,6.0]
[1646015610491,60.61774864,87.041,86.97,17.2507]
[1646015610691,60.61774864,87.041,86.971,2.80198139]
[1646015615297,60.61774864,87.041,86.962,6.0]
[1646015615495,60.61774864,87.041,86.951,2.3742284]
[1646015616498,17.2557,87.04,86.951,2.3742284]
[1646015619101,34.7289,87.04,86.951,2.3742284]
[1646015621707,17.2557,87.04,86.951,2.3742284]
[1646015622004,60.61774864,87.041,86.961,2.71325442]
[1646015623403,60.61774864,87.041,86.972,2.84436188]
[1646015623903,60.61774864,87.041,86.975,2.87315539]
[1646015624508,60.61774864,87.041,86.981,115.8]
[1646015624705,60.61774864,87.041,86.982,2.3869032]
[1646015631035,60.61774864,87.041,86.961,2.70204999]
[1646015631237,60.61774864,87.041,86.966,10.0]
[1646015632737,60.61774864,87.041,86.952,2.48245728]
[1646015632937,60.61774864,87.041,86.961,3.11540782]
[1646015635744,60.61774864,87.041,86.971,118.47310765]
[1646015635944,60.61774864,87.041,86.972,2.28316301]
[1646015636944,23.6977,87.072,86.991,115.8]
[1646015637146,23.6977,87.072,86.992,3.05385976]
[1646015637545,17.2464,87.09,86.992,3.05385976]
[1646015637847,34.788,87.09,86.992,3.05385976]
[1646015638045,43.03412999,87.089,86.982,2.38696972]
[1646015638346,43.03412999,87.089,86.986,2.43995171]
[1646015638545,43.03412999,87.089,87.001,115.8]
[1646015638747,43.03412999,87.089,87.002,2.25665588]
[1646015644750,1.06287618,87.088,87.002,2.25665588]
[1646015644951,17.2474,87.08,87.002,2.25665588]
[1646015645151,17.2474,87.08,86.985,4.595]
[1646015645152,17.2474,87.08,86.985,7.10724812]
[1646015645556,17.2474,87.08,86.985,4.595]
[1646015646156,17.2474,87.08,86.907,43.19206351]
[1646015646157,115.8,87.071,86.907,43.19206351]
[1646015646353,115.8,87.071,86.879,17.3395]
[1646015646354,115.8,87.029,86.913,10.0]
[1646015646554,14.05,87.03,86.913,10.0]
[1646015646753,25.1445747,87.028,86.9,17.2605]
[1646015646953,25.1445747,87.028,86.901,118.35711732]
[1646015647153,4.596,87.027,86.902,2.38786412]
[1646015647355,33.40770017,87.027,86.903,3.04337474]
[1646015647553,48.5819615,87.026,86.903,3.04337474]
[1646015647754,1.40097403,87.024,86.903,3.04337474]
[1646015647954,115.8,87.019,86.903,3.04337474]
[1646015648157,1.5276793,87.018,86.903,3.04337474]
[1646015648355,4.599,87.017,86.903,3.04337474]
[1646015648558,5.99247147,87.017,86.903,3.04337474]
[1646015648755,39.07806096,87.017,86.903,118.84337474]
[1646015648977,2.74678921,87.016,86.904,2.44191039]
[1646015649356,43.03412999,87.009,86.904,2.44191039]
[1646015649857,43.03412999,87.009,86.906,115.8]
[1646015650056,43.03412999,87.009,86.921,115.8]
[1646015650257,2.74678921,87.034,86.931,115.8]
[1646015650458,4.594,87.041,86.941,115.8]
[1646015650656,4.594,87.041,86.951,115.8]
[1646015650860,4.594,87.041,86.942,6.0]
[1646015650861,4.594,87.041,86.961,115.8]
[1646015651056,4.59,87.087,86.962,2.33168048]
[1646015651257,49.74811711,87.072,86.964,115.8]
[1646015651458,49.74811711,87.072,86.965,2.25502016]
[1646015651857,17.2506,87.07,86.965,2.25502016]
[1646015652059,17.2506,87.07,86.971,115.8]
[1646015652259,17.2506,87.07,86.972,2.97052192]
[1646015652659,49.74811711,87.072,86.972,2.97052192]
[1646015654268,17.2493,87.07,86.981,37.24611974]
[1646015654468,17.2493,87.07,86.982,2.42551584]
[1646015657993,31.2993,87.07,86.982,2.42551584]
[1646015658193,49.74811711,87.072,86.982,2.42551584]
[1646015659894,49.74811711,87.072,86.982,118.22551584]
[1646015660194,49.74811711,87.072,86.983,2.60448391]
[1646015660394,49.74811711,87.072,86.985,3.06189146]
[1646015660594,49.74811711,87.072,86.992,2.73164278]
[1646015663697,24.4665,87.088,86.992,2.73164278]
[1646015663895,24.4665,87.088,87.002,2.68745155]
[1646015664096,16.9938,87.097,87.002,2.68745155]
[1646015664898,49.29304977,87.096,87.011,115.8]
[1646015665098,49.29304977,87.096,87.012,2.83326436]
[1646015666100,49.29304977,87.096,87.005,2.5775191]
[1646015666302,17.1801,87.119,87.021,115.8]
[1646015666499,17.1801,87.119,87.022,2.50794605]
[1646015667105,4.594,87.139,87.024,115.8]
[1646015667302,24.3318,87.147,87.027,3.0312113]
[1646015667503,24.3318,87.147,87.041,115.8]
[1646015667701,4.591,87.175,87.061,115.8]
[1646015667902,75.39548607,87.201,87.071,115.8]
[1646015667903,4.591,87.2,87.071,115.8]
[1646015668101,4.59,87.222,87.073,115.8]
[1646015668301,4.59,87.222,87.075,158.84683542]
[1646015668502,71.621,87.223,87.091,115.8]
[1646015668702,71.621,87.223,87.11,17.2172]
[1646015669004,71.621,87.223,87.12,14.05]
[1646015669201,3.5910623,87.183,87.121,6.0]
[1646015669400,3.5910623,87.183,87.123,3.11938532]
[1646015669401,48.78936662,87.182,87.123,3.11938532]
[1646015670304,3.5910623,87.183,87.13,17.2172]
[1646015670502,3.5910623,87.183,87.14,14.05]
[1646015670703,3.5910623,87.183,87.15,14.05]
[1646015670903,3.5910623,87.183,87.151,8.79845258]
[1646015671305,4.2597364,87.203,87.152,43.04683542]
[1646015671506,3.7597364,87.203,87.16,17.2108]
[1646015671704,3.7597364,87.203,87.161,8.47499349]
[1646015672405,3.7597364,87.203,87.153,2.55689146]
[1646015674305,3.2597364,87.203,87.153,2.55689146]
[1646015674505,0.72761794,87.182,87.153,2.55689146]
[1646015676809,0.00761794,87.182,87.153,2.55689146]
[1646015677206,0.00761794,87.182,87.154,6.0]
[1646015678111,0.00761794,87.182,87.155,115.8]
[1646015678308,0.00761794,87.182,87.156,6.0]
[1646015678510,0.00761794,87.182,87.153,2.55689146]
[1646015678813,2.76735434,87.203,87.154,6.0]
[1646015679010,2.76735434,87.203,87.153,2.55689146]
[1646015679415,0.72456911,87.181,87.153,2.55689146]
[1646015680013,0.72456911,87.181,87.153,118.35689146]
[1646015680213,0.72456911,87.181,87.14,7.94]
[1646015681012,0.72456911,87.181,87.14,0.0001]
[1646015681212,77.48531429,87.18,87.14,0.0001]
[1646015681814,115.8,87.178,87.14,0.0001]
[1646015682012,6.45875724,87.177,87.14,0.0001]
[1646015682214,17.2317,87.17,87.063,2.39725621]
[1646015682414,4.591,87.169,87.063,118.19725621]
[1646015682616,7.55456911,87.181,87.065,115.8]
[1646015682813,43.32044698,87.176,87.068,2.66257644]
[1646015683113,43.32044698,87.176,87.083,115.8]
[1646015683313,43.32044698,87.176,87.086,2.55516729]
[1646015683517,43.32044698,87.176,87.088,115.8]
[1646015683715,43.32044698,87.176,87.091,3.11662449]
[1646015683916,43.32044698,87.176,87.092,6.0]
[1646015684320,43.32044698,87.176,87.091,3.11662449]
[1646015684715,43.32044698,87.176,87.084,2.79162198]
[1646015684918,43.32044698,87.176,87.086,115.8]
[1646015685119,43.32044698,87.176,87.088,115.8]
[1646015685318,43.32044698,87.176,87.09,115.8]
[1646015685517,43.32044698,87.176,87.091,2.51552709]
[1646015685718,43.32044698,87.176,87.083,3.00596768]
[1646015686218,1.42685429,87.175,87.083,3.00596768]
[1646015686419,4.59,87.174,87.083,3.00596768]
[1646015686820,4.59,87.175,87.083,3.00596768]
[1646015687220,6.31403154,87.175,87.083,3.00596768]
[1646015687621,17.2298,87.17,87.083,3.00596768]
[1646015691642,17.2298,87.17,87.083,118.80596768]
[1646015691941,43.32044698,87.176,87.086,2.51412782]
[1646015692143,43.32044698,87.176,87.088,115.8]
[1646015692341,43.32044698,87.176,87.091,2.61828151]
[1646015692542,43.32044698,87.176,87.094,2.4954141]
[1646015692743,43.32044698,87.176,87.098,115.8]
[1646015692943,43.32044698,87.176,87.099,2.46543608]
[1646015693145,43.32044698,87.176,87.101,2.70783918]
[1646015693952,43.32044698,87.176,87.111,142.03855057]
[1646015694145,43.32044698,87.176,87.112,8.59093279]
[1646015695145,43.32044698,87.176,87.112,2.59093279]
[1646015695346,43.32044698,87.176,87.087,2.81462179]
[1646015695544,43.32044698,87.176,87.081,2.80039365]
[1646015695745,43.32044698,87.176,87.083,115.8]
[1646015695948,43.32044698,87.176,87.084,8.69893231]
[1646015696146,43.32044698,87.176,87.085,54.2662833]
[1646015696348,43.32044698,87.176,87.086,6.0]
[1646015696547,43.32044698,87.176,87.091,2.88051274]
[1646015697251,122.63678921,87.175,87.091,2.88051274]
[1646015697448,1.53111697,87.174,87.063,2.77123588]
[1646015697652,4.591,87.173,87.063,2.77123588]
[1646015697849,7.33778921,87.173,87.063,2.77123588]
[1646015698251,2.74678921,87.172,87.065,3.00485639]
[1646015698449,17.2296,87.17,87.07,17.2292]
[1646015698652,6.17817262,87.169,87.071,9.04141934]
[1646015698849,8.92496183,87.169,87.071,9.04141934]
[1646015699049,7.33778921,87.169,87.071,9.04141934]
[1646015699250,2.74678921,87.168,87.071,9.04141934]
[1646015701053,2.7063221,87.298,87.101,185.35]
[1646015701252,2.7063221,87.298,87.189,2.74678921]
[1646015701452,2.7063221,87.298,87.201,115.8]
[1646015701652,1.53e-05,87.286,87.212,2.35953591]
[1646015701852,1.53e-05,87.286,87.221,115.8]
[1646015702153,1.70068828,87.422,87.251,115.8]
[1646015702353,1.70068828,87.422,87.23,189.63]
[1646015702354,16.8483,87.468,87.3,175.58]
[1646015702658,0.0060669,87.385,87.331,115.8]
[1646015702853,0.0060669,87.385,87.341,115.8]
[1646015703054,0.0060669,87.385,87.35,14.05]
[1646015703258,0.0060669,87.385,87.351,115.8]
[1646015703454,1.84618309,87.502,87.352,10.578]
[1646015703655,1.84618309,87.502,87.351,2.31933219]
[1646015703856,112.6,87.499,87.351,2.31933219]
[1646015704258,2.74678921,87.498,87.351,2.31933219]
[1646015704458,2.74678921,87.498,87.353,115.8]
[1646015704659,2.24678921,87.498,87.355,115.8]
[1646015704859,2.24678921,87.498,87.37,14.05]
[1646015705058,2.74678921,87.497,87.38,14.05]
[1646015705264,50.6892471,87.503,87.381,6.0]
[1646015705466,50.6892471,87.503,87.38,14.05]
[1646015705663,53.43603631,87.503,87.381,9.06611418]
[1646015705860,53.43603631,87.503,87.381,3.06611418]
[1646015706061,53.43603631,87.503,87.38,14.05]
[1646015706261,50.6892471,87.503,87.38,14.05]
[1646015706461,50.6892471,87.503,87.39,17.1638]
[1646015706660,50.6892471,87.503,87.38,14.05]
[1646015706661,50.6892471,87.503,87.4,14.05]
[1646015706861,2.74678921,87.502,87.41,14.05]
[1646015707062,2.74678921,87.502,87.42,14.05]
[1646015707261,50.6892471,87.503,87.43,14.05]
[1646015707561,2.74678921,87.502,87.43,14.05]
[1646015708163,50.6892471,87.503,87.43,14.05]
[1646015708564,2.74678921,87.502,87.43,14.05]
[1646015708984,50.6892471,87.503,87.43,14.05]
[1646015709164,50.6892471,87.503,87.431,2.40785079]
[1646015709363,29.47657429,87.503,87.431,2.91467341]
[1646015709563,2.74678921,87.502,87.43,14.05]
[1646015710564,29.47657429,87.503,87.431,115.8]
[1646015710764,29.47657429,87.503,87.432,4.573]
[1646015710965,29.47657429,87.503,87.434,115.8]
[1646015711165,29.47657429,87.503,87.437,2.48109006]
[1646015711363,29.47657429,87.503,87.45,14.05]
[1646015713873,17.1581,87.56,87.45,14.05]
[1646015714076,0.5,87.557,87.45,31.2021]
[1646015714277,0.5,87.557,87.451,8.42812108]
[1646015714476,0.5,87.557,87.452,4.571]
[1646015714675,0.5,87.557,87.453,6.0]
[1646015714874,0.5,87.557,87.454,4.571]
[1646015715074,0.5,87.557,87.455,6.0]
[1646015715775,0.5,87.557,87.45,14.05]
[1646015715975,0.5,87.557,87.451,2.27159485]
[1646015716176,0.5,87.557,87.451,3.05876588]
[1646015716374,0.5,87.557,87.451,2.759821]
[1646015716598,0.5,87.557,87.45,14.05]
[1646015716892,2.25513273,87.557,87.45,14.05]
[1646015717292,17.1597,87.55,87.43,14.05]
[1646015717493,1.51166312,87.549,87.431,6.0]
[1646015717693,1.51166312,87.549,87.431,8.60535664]
[1646015718393,17.1618,87.54,87.411,4.571]
[1646015718593,57.59486007,87.539,87.413,2.81646121]
[1646015718792,57.59486007,87.539,87.411,2.9315563]
[1646015718793,56.10332095,87.539,87.411,2.9315563]
[1646015718992,1.63198618,87.538,87.411,2.9315563]
[1646015719193,1.63198618,87.538,87.39,14.05]
[1646015719393,4.37877539,87.538,87.391,8.84833185]
[1646015719593,17.1642,87.52,87.391,8.84833185]
[1646015719793,62.01779032,87.519,87.391,8.84833185]
[1646015719995,1.58985669,87.518,87.391,8.84833185]
[1646015720193,4.3366459,87.518,87.367,2.56443074]
[1646015720593,2.74678921,87.517,87.367,2.56443074]
[1646015720795,112.6,87.49,87.367,2.56443074]
[1646015720995,17.1754,87.47,87.367,2.56443074]
[1646015721193,44.6727702,87.469,87.368,4.575]
[1646015722394,44.6727702,87.469,87.367,2.56443074]
[1646015722994,44.6727702,87.469,87.368,4.575]
[1646015723401,44.6727702,87.469,87.38,14.05]
[1646015723596,44.6727702,87.469,87.381,6.82940399]
[1646015723798,44.6727702,87.469,87.4,17.1612]
[1646015723996,44.6727702,87.469,87.401,4.574]
[1646015724297,44.6727702,87.469,87.401,7.20968434]
[1646015724799,44.6727702,87.469,87.402,8.74678921]
[1646015724997,1.61923363,87.568,87.403,120.374]
[1646015725197,117.41923363,87.568,87.405,115.8]
[1646015725401,0.57373216,87.573,87.421,115.8]
[1646015725598,0.57373216,87.573,87.431,115.8]
[1646015725798,0.57373216,87.573,87.442,2.817804]
[1646015726001,59.34117537,87.572,87.451,115.8]
[1646015726200,59.34117537,87.572,87.445,27.01566264]
[1646015726201,59.34117537,87.572,87.461,115.8]
[1646015726399,59.34117537,87.572,87.471,115.8]
[1646015726601,59.34117537,87.572,87.472,2.49862802]
[1646015726999,1.72489108,87.571,87.472,2.49862802]
[1646015727400,59.34117537,87.572,87.45,14.05]
[1646015727600,59.34117537,87.572,87.451,6.0]
[1646015727801,17.1541,87.57,87.46,17.1499]
[1646015728100,17.1541,87.57,87.462,2.79932861]
[1646015728302,17.1541,87.57,87.465,2.30376396]
[1646015728503,17.1541,87.57,87.467,115.8]
[1646015728700,17.1541,87.57,87.468,2.95639795]
[1646015728901,59.34117537,87.572,87.468,2.95639795]
[1646015729099,59.34117537,87.572,87.471,115.8]
[1646015729300,59.34117537,87.572,87.474,2.50653232]
[1646015729501,59.34117537,87.572,87.477,2.61641671]
[1646015729702,59.34117537,87.572,87.492,2.49689749]
[1646015732302,59.34117537,87.572,87.491,2.96176524]
[1646015732504,59.34117537,87.572,87.481,115.8]
[1646015732706,59.34117537,87.572,87.482,2.4688663]
[1646015733105,59.34117537,87.572,87.451,115.8]
[1646015733307,59.34117537,87.572,87.452,3.0058939]
[1646015733505,17.1546,87.56,87.452,3.0058939]
[1646015733707,17.1546,87.56,87.458,2.70489812]
[1646015733904,115.8,87.559,87.441,3.00600669]
[1646015734104,59.34117537,87.572,87.441,118.0632911]
[1646015734304,59.34117537,87.572,87.442,2.511766]
[1646015734906,59.34117537,87.572,87.444,115.8]
[1646015735204,59.34117537,87.572,87.445,2.7732629]
[1646015735606,55.82157277,87.549,87.445,2.7732629]